bitfinex/quotes_SOLUSD_20240604
["timestamp","ask_amount","ask_price","bid_price","bid_amount"]
[1717494851689,4.4931,164.7,164.62,2.2475]
[1717494851902,7.08,164.66,164.62,2.2475]
[1717494852100,2.2469,164.67,164.63,6.0025]
[1717494852307,7.08,164.66,164.63,6.0025]
[1717494852489,2.2468,164.68,164.63,8.4022]
[1717494852677,7.08,164.67,164.63,8.4022]
[1717494853008,7.08,164.67,164.65,6.1548]
[1717494853206,2.2466,164.69,164.64,2.2472]
[1717494853503,9.3267,164.68,164.65,6.1548]
[1717494853697,2.2469,164.67,164.62,2.2475]
[1717494853904,9.3273,164.64,164.61,6.5534]
[1717494854094,7.08,164.64,164.61,6.5534]
[1717494854289,7.08,164.63,164.61,6.5534]
[1717494855595,7.08,164.64,164.61,6.5534]
[1717494855799,2.247,164.66,164.61,6.4596]
[1717494856003,7.08,164.66,164.63,6.105]
[1717494856172,7.08,164.66,164.63,8.3524]
[1717494856374,7.08,164.67,164.63,8.3524]
[1717494856667,2.2468,164.68,164.63,8.3524]
[1717494856872,7.08,164.67,164.64,6.0802]
[1717494857097,2.2468,164.68,164.64,6.0802]
[1717494857288,7.08,164.67,164.64,6.0802]
[1717494858198,9.3269,164.67,164.64,6.0802]
[1717494858499,2.2469,164.67,164.64,6.0802]
[1717494858691,9.3269,164.67,164.64,6.0802]
[1717494859094,9.3269,164.67,164.64,6.1339]
[1717494859391,9.3268,164.68,164.65,6.1339]
[1717494861292,2.2469,164.67,164.65,6.1339]
[1717494861671,2.2469,164.67,164.63,21.9571]
[1717494861985,2.2469,164.67,164.64,6.0401]
[1717494862489,7.08,164.65,164.62,6.3589]
[1717494862689,9.3271,164.65,164.6,8.6067]
[1717494862904,2.2473,164.64,164.6,6.3589]
[1717494863579,2.2472,164.65,164.6,24.2705]
[1717494863878,9.3272,164.65,164.61,6.4505]
[1717494864545,2.2472,164.65,164.62,6.5315]
[1717494864917,9.327,164.66,164.62,6.5315]
[1717494866045,9.327,164.66,164.62,6.6159]
[1717494866414,2.247,164.66,164.62,6.6159]
[1717494869137,2.247,164.66,164.63,6.269]
[1717494871134,9.3269,164.67,164.63,6.269]
[1717494871328,20.2189,164.7,164.63,6.269]
[1717494871329,9.3268,164.68,164.63,8.5164]
[1717494871633,2.2469,164.67,164.63,8.5164]
[1717494872417,9.3269,164.67,164.63,8.5164]
[1717494872930,9.3269,164.67,164.64,6.1081]
[1717494873128,2.2469,164.67,164.64,6.1081]
[1717494873834,2.2469,164.67,164.62,135.7292]
[1717494874443,2.2469,164.67,164.63,2.2474]
[1717494875921,2.2468,164.68,164.63,2.2474]
[1717494876120,9.3268,164.68,164.63,2.2474]
[1717494876844,2.2469,164.67,164.63,2.2474]
[1717494880257,9.3269,164.67,164.63,2.2474]
[1717494880653,2.2469,164.67,164.63,2.2474]
[1717494881034,2.247,164.66,164.6,120.0]
[1717494881358,2.247,164.66,164.59,4.4958]
[1717494881359,9.3272,164.65,164.59,7.08]
[1717494881525,9.3272,164.65,164.6,20.0]
[1717494882354,9.3272,164.65,164.61,2.2477]
[1717494882951,7.08,164.65,164.62,2.2475]
[1717494886536,7.08,164.65,164.63,2.2474]
[1717494888127,2.2468,164.68,164.64,2.2473]
[1717494888332,7.08,164.67,164.64,2.2473]
[1717494889430,7.08,164.66,164.64,2.2473]
[1717494892456,7.08,164.64,164.61,2.2477]
[1717494893338,9.3272,164.65,164.61,2.2477]
[1717494893663,9.3272,164.65,164.6,2.2478]
[1717494893873,7.08,164.64,164.6,2.2478]
[1717494894752,9.3273,164.64,164.6,2.2478]
[1717494895136,2.2472,164.65,164.61,2.2477]
[1717494895367,7.08,164.64,164.61,2.2477]
[1717494895562,9.3272,164.65,164.61,2.2477]
[1717494895760,7.08,164.64,164.61,2.2477]
[1717494896560,7.08,164.65,164.59,127.08]
[1717494896776,7.08,164.66,164.62,2.2474]
[1717494897069,2.2469,164.67,164.62,2.2474]
[1717494897264,9.327,164.66,164.62,2.2474]
[1717494898677,2.247,164.66,164.62,2.2474]
[1717494898847,9.327,164.66,164.62,2.2474]
[1717494899766,2.2471,164.65,164.61,2.2477]
[1717494899971,9.3271,164.65,164.61,2.2477]
[1717494901683,7.08,164.65,164.61,2.2477]
[1717494902069,7.08,164.65,164.62,2.2475]
[1717494902563,2.2471,164.66,164.62,2.2475]
[1717494902778,9.3271,164.66,164.62,2.2475]
[1717494903579,2.2471,164.65,164.61,2.2477]
[1717494903773,9.3271,164.65,164.61,2.2477]
[1717494904993,7.08,164.63,164.57,0.03779165]
[1717494905170,7.08,164.63,164.58,2.248]
[1717494905486,7.08,164.62,164.58,2.248]
[1717494906190,9.06448772,164.6,164.58,2.248]
[1717494907190,7.08,164.62,164.58,2.248]
[1717494907597,7.08,164.61,164.57,2.28599165]
[1717494908983,2.2475,164.63,164.58,2.2481]
[1717494909209,7.08,164.61,164.58,2.2481]
[1717494909395,2.2473,164.64,164.58,7.08]
[1717494909596,7.08,164.64,164.6,2.2478]
[1717494910303,9.3273,164.64,164.6,2.2478]
[1717494910509,2.247,164.66,164.61,2.2476]
[1717494910706,2.247,164.66,164.62,2.2475]
[1717494911013,7.08,164.65,164.61,2.2476]
[1717494912945,7.08,164.65,164.62,2.2475]
[1717494913710,2.2472,164.65,164.61,2.2477]
[1717494913909,10.6197,164.69,164.58,120.0]
[1717494913910,2.2471,164.66,164.62,2.2475]
[1717494914121,9.3271,164.66,164.62,2.2475]
[1717494914304,2.2471,164.66,164.62,2.2475]
[1717494914512,9.3271,164.66,164.61,2.2476]
[1717494915101,9.3272,164.65,164.6,2.2478]
[1717494915300,9.06101718,164.61,164.6,2.2478]
[1717494915504,7.08,164.64,164.6,2.2478]
[1717494915803,9.06033179,164.61,164.59,2.2479]
[1717494916732,9.06033179,164.6,164.59,2.2479]
[1717494917099,9.06028066,164.6,164.59,2.2479]
[1717494920631,9.06028066,164.6,164.58,2.248]
[1717494920803,9.06028066,164.59,164.58,2.248]
[1717494921005,7.08,164.61,164.58,2.248]
[1717494921813,7.08,164.62,164.58,2.248]
[1717494922222,7.08,164.61,164.58,2.248]
[1717494924398,7.08,164.61,164.59,2.2479]
[1717494925903,7.08,164.61,164.58,2.248]
[1717494926411,7.08,164.62,164.58,2.248]
[1717494927737,7.08,164.61,164.58,2.248]
[1717494928605,7.08,164.62,164.59,2.248]
[1717494928802,2.2473,164.64,164.59,2.248]
[1717494929312,7.08,164.62,164.59,2.248]
[1717494929706,7.08,164.62,164.58,2.2481]
[1717494930519,2.2474,164.63,164.58,2.2481]
[1717494930739,9.3274,164.63,164.59,2.248]
[1717494931101,2.2474,164.63,164.59,2.248]
[1717494931305,2.2471,164.66,164.61,2.2477]
[1717494931516,7.08,164.65,164.61,2.2477]
[1717494931814,9.3272,164.65,164.61,2.2477]
[1717494932017,7.08,164.64,164.6,2.2478]
[1717494933618,7.08,164.62,164.57,6.27719165]
[1717494933824,9.06298486,164.58,164.57,2.28599165]
[1717494934418,9.3277,164.61,164.57,2.28599165]
[1717494934419,7.08,164.61,164.57,0.03779165]
[1717494934907,9.3281,164.58,164.57,0.03779165]
[1717494935409,2.2481,164.58,164.57,0.03779165]
[1717494935938,9.3281,164.58,164.57,0.03779165]
[1717494939845,4.4943,164.66,164.57,0.03779165]
[1717494940014,7.08,164.62,164.57,8.59049165]
[1717494940211,9.06027362,164.58,164.57,8.59049165]
[1717494940748,9.06027362,164.59,164.57,0.03779165]
[1717494941050,9.3281,164.59,164.57,0.03779165]
[1717494941219,7.08,164.59,164.57,0.03779165]
[1717494941424,9.05967544,164.59,164.57,0.03779165]
[1717494941727,9.06010676,164.59,164.57,0.03779165]
[1717494942425,9.06010676,164.58,164.57,0.03779165]
[1717494942621,9.328,164.59,164.57,0.03779165]
[1717494943021,2.2476,164.62,164.58,6.1882]
[1717494943412,9.3276,164.62,164.58,6.1882]
[1717494943842,9.05754878,164.6,164.58,6.1882]
[1717494944460,9.05754878,164.59,164.57,0.03779165]
[1717494944619,9.05754878,164.59,164.58,6.5785]
[1717494944828,2.2474,164.64,164.59,2.2479]
[1717494945018,2.2474,164.64,164.58,6.5785]
[1717494945019,9.3274,164.63,164.58,2.2481]
[1717494945233,7.08,164.62,164.58,2.2481]
[1717494945942,7.08,164.62,164.57,0.03779165]
[1717494946255,9.3278,164.61,164.57,0.03779165]
[1717494946452,7.08,164.61,164.57,0.03779165]
[1717494946624,9.3278,164.61,164.57,0.03779165]
[1717494947852,2.2478,164.6,164.57,0.03779165]
[1717494948528,11.2341,164.68,164.6,8.8328]
[1717494948751,9.3272,164.65,164.6,8.8328]
[1717494950329,9.3272,164.65,164.61,126.2513]
[1717494950544,7.08,164.65,164.61,126.2513]
[1717494950855,7.08,164.66,164.62,6.2513]
[1717494951061,7.08,164.66,164.63,2.2473]
[1717494951263,7.08,164.67,164.63,2.2473]
[1717494951558,4.493,164.7,164.62,6.2513]
[1717494951559,9.327,164.66,164.62,6.2513]
[1717494951771,7.08,164.66,164.62,8.4988]
[1717494952958,7.08,164.65,164.62,8.4988]
[1717494953662,9.3271,164.65,164.61,2.2476]
[1717494953877,7.08,164.64,164.61,2.2476]
[1717494954439,7.08,164.65,164.61,2.2476]
[1717494954947,7.08,164.65,164.62,2.2475]
[1717494955339,7.08,164.65,164.61,2.2476]
[1717494955539,7.08,164.65,164.62,2.2475]
[1717494960942,4.4934,164.69,164.59,127.08]
[1717494960943,4.4928,164.71,164.61,127.08]
[1717494961156,7.08,164.67,164.61,127.08]
[1717494961661,7.08,164.67,164.64,2.2472]
[1717494961871,2.2468,164.68,164.64,2.2472]
[1717494962041,2.2467,164.69,164.64,2.2472]
[1717494962243,7.08,164.68,164.65,2.2471]
[1717494962665,9.3267,164.69,164.65,2.2471]
[1717494962840,2.2467,164.69,164.64,2.2472]
[1717494963033,9.3267,164.69,164.64,8.5876]
[1717494963347,9.06017005,164.65,164.64,8.5876]
[1717494963544,9.06017005,164.65,164.64,15.6676]
[1717494963750,9.06017005,164.65,164.64,15.8376]
[1717494964070,9.06017005,164.65,164.64,16.0076]
[1717494964264,9.06017005,164.65,164.64,31.3523]
[1717494964566,9.3263,164.71,164.66,122.247]
[1717494964734,9.3263,164.71,164.66,128.8995]
[1717494965167,2.2465,164.7,164.66,128.8995]
[1717494965873,9.3264,164.71,164.66,128.8995]
[1717494966349,9.3264,164.71,164.65,7.08]
[1717494966350,9.3265,164.7,164.64,0.34]
[1717494966540,7.08,164.68,164.64,2.2472]
[1717494966946,7.08,164.68,164.65,120.0]
[1717494967351,7.08,164.68,164.65,122.2471]
[1717494967552,7.08,164.68,164.65,2.2471]
[1717494968742,7.08,164.68,164.64,2.2473]
[1717494970069,7.08,164.68,164.65,2.2471]
[1717494971069,2.2465,164.7,164.66,2.247]
[1717494971255,9.3265,164.7,164.66,2.247]
[1717494972956,2.2465,164.7,164.66,2.247]
[1717494973276,9.3265,164.7,164.67,120.0]
[1717494973663,2.2465,164.7,164.67,120.0]
[1717494973867,9.3265,164.7,164.67,120.0]
[1717494974073,9.3265,164.7,164.65,122.2471]
[1717494974788,9.3265,164.7,164.66,2.247]
[1717494975981,9.3268,164.68,164.64,2.2472]
[1717494976281,9.3269,164.67,164.63,2.2473]
[1717494977607,9.05841998,164.65,164.63,2.2473]
[1717494978578,9.05841998,164.65,164.62,2.2475]
[1717494978967,9.05841998,164.64,164.62,2.2475]
[1717494980510,9.05841998,164.65,164.63,2.2474]
[1717494980677,9.05841998,164.65,164.63,122.2473]
[1717494980857,9.05841998,164.66,164.64,2.2473]
[1717494981575,9.05841998,164.66,164.63,122.2473]
[1717494982079,9.05841998,164.65,164.63,2.2473]
[1717494982656,9.05841998,164.65,164.64,2.2473]
[1717494983782,16.13841998,164.66,164.63,2.2473]
[1717494983989,9.05841998,164.64,164.62,2.2475]
[1717494984964,9.05841998,164.64,164.63,2.2474]
[1717494985494,9.05841998,164.65,164.63,2.2474]
[1717494986697,9.05841998,164.65,164.64,2.2473]
[1717494987066,9.05841998,164.65,164.63,2.2474]
[1717494987291,9.05841998,164.65,164.62,120.0]
[1717494987292,9.05841998,164.65,164.64,2.2473]
[1717494987499,9.05865348,164.65,164.64,2.2473]
[1717494988066,9.05865348,164.65,164.63,2.2473]
[1717494990073,9.05888327,164.65,164.63,2.2473]
[1717494990474,9.3269,164.67,164.63,2.2473]
[1717494990978,9.05845504,164.64,164.63,2.2473]
[1717494991379,7.08,164.66,164.63,2.2473]
[1717494992810,2.2469,164.67,164.63,2.2473]
[1717494992989,7.08,164.66,164.63,2.2473]
[1717494993191,2.2469,164.67,164.63,2.2473]
[1717494993507,9.3269,164.67,164.63,2.2473]
[1717494993715,2.2469,164.67,164.63,2.2473]
[1717494993876,9.3269,164.67,164.63,2.2473]
[1717494995170,7.08,164.66,164.63,2.2473]
[1717494995983,2.2469,164.67,164.63,2.2473]
[1717494996314,7.08,164.66,164.63,2.2473]
[1717494999995,2.2469,164.67,164.63,2.2473]
[1717495000166,7.08,164.66,164.63,2.2473]
[1717495000371,7.08,164.67,164.64,2.2473]
[1717495000571,7.08,164.66,164.64,2.2473]
[1717495003402,2.2468,164.68,164.64,2.2473]
[1717495003579,7.08,164.67,164.64,2.2473]
[1717495003779,2.2468,164.68,164.64,2.2473]
[1717495004087,7.08,164.67,164.64,2.2473]
[1717495004476,9.3268,164.68,164.64,2.2473]
[1717495005409,2.2466,164.69,164.65,2.2471]
[1717495005705,9.3266,164.69,164.65,2.2471]
[1717495007098,2.2469,164.67,164.63,2.2474]
[1717495007294,9.3269,164.67,164.63,2.2474]
[1717495007481,7.08,164.66,164.63,2.2474]
[1717495007905,7.08,164.67,164.64,2.2473]
[1717495008101,7.08,164.67,164.65,1.39799647]
[1717495008611,7.08,164.67,164.64,2.2473]
[1717495010190,2.2468,164.68,164.64,2.2473]
[1717495010908,2.2469,164.67,164.64,2.2473]
[1717495011088,2.2469,164.67,164.63,2.2474]
[1717495014624,2.2469,164.67,164.63,8.8553]
[1717495015299,2.2469,164.67,164.64,2.2473]
[1717495015691,2.2469,164.67,164.63,6.6079]
[1717495015692,2.2469,164.67,164.63,2.2473]
[1717495016837,2.2468,164.68,164.64,2.2473]
[1717495017005,9.3268,164.68,164.64,2.2473]
[1717495018497,2.2468,164.68,164.64,2.2473]
[1717495018705,9.3268,164.68,164.64,2.2473]
[1717495019518,2.2468,164.68,164.64,2.2473]
[1717495019739,9.3268,164.68,164.64,2.2473]
[1717495020327,9.3268,164.68,164.62,127.08]
[1717495020328,2.2469,164.67,164.63,2.2473]
[1717495022505,9.3268,164.68,164.64,2.2473]
[1717495023824,2.2465,164.7,164.66,8.6348]
[1717495024031,2.2466,164.69,164.66,6.3878]
[1717495024224,2.2466,164.69,164.65,122.2471]
[1717495024946,2.2468,164.68,164.64,9.3272]
[1717495025227,2.2468,164.68,164.65,30.0]
[1717495026533,2.2468,164.68,164.64,2.2472]
[1717495028210,7.08,164.69,164.63,120.0]
[1717495028409,2.2469,164.67,164.63,129.3274]
[1717495028730,2.2469,164.67,164.63,122.2474]
[1717495029507,2.2469,164.67,164.63,2.2474]
[1717495030139,9.3268,164.68,164.64,2.2473]
[1717495030810,2.2468,164.68,164.64,2.2473]
[1717495034142,2.2467,164.69,164.65,2.2471]
[1717495035120,2.2467,164.68,164.64,9.3272]
[1717495035637,2.2467,164.68,164.64,2.2472]
[1717495038237,2.2467,164.68,164.64,9.3272]
[1717495039041,2.2467,164.68,164.64,2.2472]
[1717495039620,2.2469,164.67,164.63,129.3274]
[1717495039821,2.2469,164.67,164.63,122.2474]
[1717495040038,2.2469,164.67,164.63,129.3274]
[1717495040337,2.2469,164.67,164.63,122.2474]
[1717495040556,2.2469,164.67,164.63,129.3274]
[1717495041442,9.06070724,164.64,164.63,129.3274]
[1717495042240,9.06070724,164.64,164.63,2.2474]
[1717495042442,2.2469,164.67,164.63,2.2474]
[1717495044323,2.2469,164.67,164.63,122.2474]
[1717495044527,9.06052536,164.65,164.64,2.2472]
[1717495045954,9.06052536,164.65,164.63,129.3274]
[1717495046253,9.06052536,164.65,164.63,122.2474]
[1717495046742,9.06052536,164.65,164.64,2.4173]
[1717495046941,9.06052536,164.66,164.65,120.0]
[1717495047121,9.0612995,164.66,164.65,120.0]
[1717495047324,9.0612995,164.66,164.64,2.4173]
[1717495047538,2.2468,164.68,164.64,2.2473]
[1717495054084,2.2468,164.68,164.63,122.2474]
[1717495054287,9.06001847,164.64,164.63,129.3274]
[1717495054453,9.06001847,164.64,164.63,127.08]
[1717495054655,9.06001847,164.64,164.63,120.0]
[1717495055381,9.06001847,164.64,164.63,122.2474]
[1717495056159,2.2469,164.67,164.63,122.2474]
[1717495056366,2.2468,164.68,164.63,122.2474]
[1717495056560,7.08,164.69,164.63,122.2474]
[1717495056561,2.2469,164.67,164.63,122.2474]
[1717495057276,2.2468,164.68,164.63,122.2474]
[1717495057684,9.3268,164.68,164.63,122.2474]
[1717495058358,9.327,164.66,164.62,2.2475]
[1717495058563,7.08,164.65,164.6,2.2477]
[1717495058757,9.0574449,164.61,164.6,2.2477]
[1717495059092,9.05733552,164.61,164.59,2.2479]
[1717495059386,9.05731802,164.61,164.6,2.2478]
[1717495060156,7.08,164.64,164.6,2.2478]
[1717495060157,9.3273,164.64,164.6,2.2478]
[1717495060382,9.05762796,164.61,164.6,2.2478]
[1717495060584,9.3273,164.64,164.6,2.2478]
[1717495060761,9.05763009,164.61,164.6,2.2478]
[1717495060966,9.3273,164.64,164.6,2.2478]
[1717495061388,9.0575124,164.61,164.6,129.3278]
[1717495061563,2.2471,164.66,164.61,2.2476]
[1717495061980,9.3271,164.66,164.61,2.2476]
[1717495062586,2.2471,164.65,164.61,2.2476]
[1717495064488,2.2468,164.68,164.64,2.2473]
[1717495064685,2.2468,164.68,164.63,9.3274]
[1717495064866,2.2469,164.67,164.63,9.3274]
[1717495065260,2.2468,164.68,164.63,9.3274]
[1717495065588,2.2468,164.68,164.64,2.2472]
[1717495066178,2.2468,164.68,164.63,9.3274]
[1717495067673,2.2468,164.68,164.64,120.0]
[1717495067869,2.2468,164.68,164.64,122.2473]
[1717495069563,2.2468,164.68,164.64,120.0]
[1717495070391,2.2466,164.69,164.64,128.4294]
[1717495070692,2.2466,164.69,164.64,135.5094]
[1717495071977,2.2468,164.68,164.64,128.4294]
[1717495072288,2.2468,164.68,164.66,120.0]
[1717495072470,2.2468,164.68,164.65,6.0418]
[1717495072968,2.2468,164.68,164.64,122.2473]
[1717495073170,9.05992006,164.66,164.64,122.2473]
[1717495073392,9.05992006,164.65,164.64,135.3691]
[1717495073701,9.05977202,164.65,164.64,135.7091]
[1717495074785,9.05977202,164.65,164.64,133.1218]
[1717495074994,2.2467,164.69,164.64,135.3691]
[1717495075290,9.0599978,164.66,164.64,135.3691]
[1717495076080,9.0599978,164.65,164.64,128.2891]
[1717495076293,9.0599978,164.65,164.64,135.7091]
[1717495076466,9.0599978,164.66,164.64,135.7091]
[1717495077368,9.0599978,164.66,164.65,2.2471]
[1717495077674,9.0599978,164.66,164.65,9.3271]
[1717495078490,9.0599978,164.66,164.65,2.2471]
[1717495078895,9.0599978,164.66,164.64,135.709]
[1717495079403,9.0599978,164.66,164.64,120.0]
[1717495079972,9.0599978,164.65,164.64,120.0]
[1717495080375,9.0599978,164.66,164.64,120.0]
[1717495080583,9.0599978,164.65,164.64,122.2472]
[1717495082771,9.0599978,164.65,164.64,129.3272]
[1717495082988,9.0599978,164.65,164.64,120.0]
[1717495084175,9.0599978,164.65,164.64,122.2473]
[1717495084401,2.2468,164.68,164.64,122.2473]
[1717495085098,2.2468,164.68,164.64,2.2473]
[1717495086589,2.2469,164.67,164.63,2.2474]
[1717495086895,9.3269,164.67,164.62,2.2475]
[1717495087267,2.247,164.66,164.62,2.2475]
[1717495087595,9.3269,164.67,164.62,2.2475]
[1717495087774,2.247,164.66,164.62,2.2475]
[1717495088491,2.2469,164.67,164.63,2.2474]
[1717495091278,2.2468,164.68,164.63,2.2474]
[1717495092377,2.2468,164.68,164.64,2.2473]
[1717495095811,2.2467,164.69,164.64,2.2473]
[1717495096012,2.2467,164.69,164.64,9.3273]
[1717495096389,2.2467,164.68,164.64,9.3273]
[1717495096591,2.2467,164.68,164.64,2.2473]
[1717495100317,2.2467,164.69,164.65,6.4866]
[1717495100815,2.2467,164.68,164.65,6.4866]
[1717495101489,2.2467,164.68,164.64,129.3273]
[1717495101986,2.2467,164.68,164.64,127.08]
[1717495102185,2.2467,164.68,164.64,120.0]
[1717495102403,2.2469,164.67,164.64,120.0]
[1717495103585,9.05939789,164.66,164.64,120.0]
[1717495103987,9.05939789,164.66,164.63,9.3274]
[1717495104189,9.05939789,164.66,164.63,2.2474]
[1717495104627,2.2469,164.67,164.63,2.2474]
[1717495105000,2.247,164.66,164.62,2.2475]
[1717495106513,9.05907167,164.64,164.62,2.2475]
[1717495107318,9.05907167,164.64,164.63,2.2474]
[1717495112341,9.3269,164.67,164.63,2.2474]
[1717495113505,2.247,164.66,164.62,2.2475]
[1717495113708,9.06550657,164.63,164.62,2.2475]
[1717495115601,9.06550657,164.63,164.62,129.3275]
[1717495117724,2.2469,164.67,164.63,2.2473]
[1717495117913,2.2468,164.68,164.62,127.08]
[1717495118104,2.2468,164.68,164.63,2.2474]
[1717495118299,2.2468,164.68,164.64,2.2473]
[1717495118524,2.2468,164.68,164.63,2.2473]
[1717495118910,2.2469,164.67,164.63,2.2473]
[1717495120809,2.2468,164.68,164.63,2.2473]
[1717495122130,4.493,164.7,164.62,2.2475]
[1717495122326,2.247,164.67,164.62,2.2475]
[1717495122537,2.247,164.67,164.63,2.2474]
[1717495123333,9.327,164.67,164.62,122.2475]
[1717495124428,9.327,164.67,164.63,2.2474]
[1717495125714,9.327,164.67,164.64,2.086071]
[1717495126215,9.327,164.67,164.63,2.2474]
[1717495126534,2.247,164.67,164.63,2.2474]
[1717495130057,2.247,164.66,164.62,122.2475]
[1717495130339,2.247,164.66,164.62,2.2475]
[1717495131042,2.2469,164.67,164.63,2.2474]
[1717495131422,7.08,164.66,164.63,2.2474]
[1717495131836,2.2468,164.68,164.64,8.6695]
[1717495132137,7.08,164.67,164.64,8.6695]
[1717495135442,2.2468,164.68,164.64,8.6695]
[1717495135658,7.08,164.67,164.64,8.6695]
[1717495135953,7.08,164.67,164.64,2.2473]
[1717495137029,2.2468,164.68,164.64,2.2473]
[1717495137239,7.08,164.67,164.64,2.2473]
[1717495138861,2.2468,164.68,164.64,2.2473]
[1717495139020,7.08,164.67,164.64,2.2473]
[1717495141527,2.2468,164.68,164.64,2.2473]
[1717495141724,7.08,164.67,164.64,2.2473]
[1717495141921,2.2468,164.68,164.64,2.2473]
[1717495142127,7.08,164.67,164.64,2.2473]
[1717495142432,7.08,164.67,164.63,2.2474]
[1717495142647,7.08,164.67,164.63,8.6271]
[1717495142947,2.2469,164.67,164.63,8.6271]
[1717495143172,9.3269,164.67,164.63,8.6271]
[1717495143343,7.08,164.67,164.63,8.6271]
[1717495144240,2.2468,164.68,164.63,8.6271]
[1717495144747,9.3268,164.68,164.63,8.6271]
[1717495145043,7.08,164.67,164.63,8.6271]
[1717495145252,2.2468,164.68,164.63,8.6271]
[1717495145453,9.07417061,164.64,164.63,8.6271]
[1717495145684,9.3268,164.68,164.63,8.6271]
[1717495145830,2.2466,164.7,164.65,2.2471]
[1717495148632,2.2466,164.69,164.66,6.0759]
[1717495149673,2.2466,164.69,164.64,122.2472]
[1717495149870,17.50040661,164.71,164.62,120.0]
[1717495150060,7.08,164.64,164.63,2.2474]
[1717495150369,7.08,164.65,164.63,2.2474]
[1717495150564,7.08,164.65,164.63,8.2531]
[1717495153943,7.08,164.67,164.64,120.0]
[1717495154150,7.08,164.67,164.64,126.0632]
[1717495154350,7.08,164.66,164.64,126.0632]
[1717495155246,7.08,164.66,164.65,2.2471]
[1717495155447,7.08,164.67,164.65,2.2471]
[1717495156062,2.2466,164.69,164.65,2.2471]
[1717495156369,7.08,164.67,164.65,2.2471]
[1717495156577,2.2466,164.69,164.65,2.2471]
[1717495156755,7.08,164.67,164.65,2.2471]
[1717495157865,7.08,164.67,164.64,128.3104]
[1717495158251,7.08,164.66,164.64,128.3104]
[1717495159379,7.08,164.66,164.65,2.2471]
[1717495162174,7.08,164.66,164.64,128.3104]
[1717495162379,7.08,164.67,164.64,128.3104]
[1717495165012,7.08,164.67,164.65,2.2471]
[1717495167006,2.2466,164.69,164.65,2.2471]
[1717495167209,7.08,164.67,164.65,2.2471]
[1717495167789,2.2466,164.69,164.65,2.2471]
[1717495167980,7.08,164.68,164.65,2.2471]
[1717495168296,7.08,164.67,164.65,2.2471]
[1717495169801,2.2466,164.69,164.65,2.2471]
[1717495170104,7.08,164.68,164.65,2.2471]
[1717495170901,7.08,164.68,164.64,128.3104]
[1717495171084,7.08,164.67,164.64,128.3104]
[1717495171285,7.08,164.68,164.64,128.3104]
[1717495171708,7.08,164.67,164.64,128.3104]
[1717495171907,9.07174306,164.65,164.64,128.3104]
[1717495172199,9.07174306,164.65,164.64,128.4804]
[1717495172409,9.07174306,164.65,164.64,144.5062]
[1717495173603,7.08,164.69,164.66,120.0]
[1717495173777,7.08,164.69,164.66,126.4194]
[1717495175605,2.2464,164.71,164.67,6.0602]
[1717495175781,2.2464,164.71,164.68,120.0]
[1717495175782,7.08,164.7,164.68,120.0]
[1717495176689,7.08,164.69,164.68,120.0]
[1717495179013,7.08,164.69,164.67,6.2302]
[1717495179190,7.08,164.69,164.67,6.0602]
[1717495180985,7.08,164.69,164.68,120.0]
[1717495181423,7.08,164.7,164.68,120.0]
[1717495183513,7.08,164.69,164.68,120.0]